{"text_format":"1","workbook":"xlsx","n_sheets":2,"sheets":["Feuil1","Feuil2"],"not_rendered":{"charts":0,"images":0,"macros":1,"external_links":0,"defined_names":0,"comments":0,"pivot_tables":0},"unopened":[],"bounds":{"document_bytes":16777216,"sheet_cells":100000,"rows_first":2000,"rows_last":500,"rows_between":2000,"halvings":0,"cell_chars":16384,"cell_head_chars":4096},"cells_cut":0,"cells_raw":0,"read":"whole","date_system":"1900"}

{"sheet":"Feuil1","index":0,"n_rows":4,"n_cols":5,"rows_kept":4,"cut":false,"hidden":false,"merged":[]}
["Elève","Date de l'épreuve","Note","Avis","Remarque"]
["Julien","2017-01-15",10,"Défavorable","manque d'efforts"]
["Mathieu","2017-01-18",15,"Favorable","très bien"]
["André","2017-01-21",12,"Favorable","peut faire mieux"]

{"sheet":"Feuil2","index":1,"n_rows":23,"n_cols":43,"rows_kept":23,"cut":false,"hidden":false,"merged":[]}
[null,null,549755813888,274877906944,137438953472,68719476736,34359738368,17179869184,8589934592,4294967296,2147483648,1073741824,536870912,268435456,134217728,67108864,33554432,16777216,8388608,4194304,2097152,1048576,524288,262144,131072,65536,32768,16384,8192,4096,2048,1024,512,256,128,64,32,16,8,4,2,1]
[null,null,0,0,0,0,0,0,0,0,0,0,1,0,1,1,1,0,0,0,0,1,1,1,1,0,0,0,1,1,0,1,0,0,1,1,1,1,1,1,0,0]
[null,null,{"$f":"C2*C1","v":0},0,0,0,0,0,0,{"$f":"J2*J1","v":0},{"$f":"K2*K1","v":0},{"$f":"L2*L1","v":0},{"$f":"M2*M1","v":536870912},{"$f":"N2*N1","v":0},{"$f":"O2*O1","v":134217728},{"$f":"P2*P1","v":67108864},{"$f":"Q2*Q1","v":33554432},{"$f":"R2*R1","v":0},{"$f":"S2*S1","v":0},{"$f":"T2*T1","v":0},{"$f":"U2*U1","v":0},{"$f":"V2*V1","v":1048576},{"$f":"W2*W1","v":524288},{"$f":"X2*X1","v":262144},{"$f":"Y2*Y1","v":131072},{"$f":"Z2*Z1","v":0},{"$f":"AA2*AA1","v":0},{"$f":"AB2*AB1","v":0},{"$f":"AC2*AC1","v":8192},{"$f":"AD2*AD1","v":4096},{"$f":"AE2*AE1","v":0},{"$f":"AF2*AF1","v":1024},{"$f":"AG2*AG1","v":0},{"$f":"AH2*AH1","v":0},{"$f":"AI2*AI1","v":128},64,32,16,8,4,0,{"$f":"AP2*AP1","v":0},{"$f":"SUM(C3:AP3)","v":773731580}]
[]
[null,null,null,null,null,null,null,null,null,null,null,null,null,null,null,null,null,null,null,null,null,null,null,null,null,null,null,null,null,null,null,null,null,null,128,64,32,16,8,4,2,1]
[null,null,null,null,null,null,null,null,null,null,null,null,null,null,null,null,null,null,null,null,null,null,null,null,null,null,null,null,null,null,null,null,null,null,0,0,1,1,0,0,0,1]
[null,null,null,null,null,null,null,null,null,null,null,null,null,null,null,null,null,null,null,null,null,null,null,null,null,null,null,null,null,null,null,null,null,null,{"$f":"AI6*AI5","v":0},0,32,16,0,0,0,{"$f":"AP6*AP5","v":1},{"$f":"SUM(AI7:AP7)","v":49}]
[]
[null,null,null,null,null,null,null,null,null,null,null,null,null,null,null,null,null,null,null,null,null,null,null,null,null,null,null,null,null,null,null,null,null,null,128,64,32,16,8,4,2,1]
[null,null,null,null,null,null,null,null,null,null,null,null,null,null,null,null,null,null,null,null,null,null,null,null,null,null,null,null,null,null,null,null,null,null,0,{"$f":"AB2","v":0},1,{"$f":"AD2","v":1},0,1,0,{"$f":"AH2","v":0}]
[null,null,null,null,null,null,null,null,null,null,null,null,null,null,null,null,null,null,null,null,null,null,null,null,null,null,null,null,null,null,null,null,null,null,{"$f":"AI10*AI9","v":0},0,32,16,0,4,0,{"$f":"AP10*AP9","v":0},{"$f":"SUM(AI11:AP11)","v":52}]
[]
[null,null,null,null,null,null,null,null,null,null,null,null,null,null,null,null,null,null,null,null,null,null,null,null,null,null,null,null,null,null,null,null,null,null,128,64,32,16,8,4,2,1]
[null,null,null,null,null,null,null,null,null,null,null,null,null,null,null,null,null,null,null,null,null,null,null,null,null,null,null,null,null,null,null,null,null,null,{"$f":"S2","v":0},{"$f":"T2","v":0},0,1,1,1,1,0]
[null,null,null,null,null,null,null,null,null,null,null,null,null,null,null,null,null,null,null,null,null,null,null,null,null,null,null,null,null,null,null,null,null,null,{"$f":"AI14*AI13","v":0},0,0,16,8,4,2,{"$f":"AP14*AP13","v":0},{"$f":"SUM(AI15:AP15)","v":30}]
[]
[null,null,null,null,null,null,null,null,null,null,null,null,null,null,null,null,null,null,null,null,null,null,null,null,null,null,null,null,null,null,null,null,null,null,128,64,32,16,8,4,2,1]
[null,null,null,null,null,null,null,null,null,null,null,null,null,null,null,null,null,null,null,null,null,null,null,null,null,null,null,null,null,null,null,null,null,null,0,{"$f":"L2","v":0},1,0,{"$f":"O2","v":1},1,1,{"$f":"R2","v":0}]
[null,null,null,null,null,null,null,null,null,null,null,null,null,null,null,null,null,null,null,null,null,null,null,null,null,null,null,null,null,null,null,null,null,null,{"$f":"AI18*AI17","v":0},0,32,0,8,4,2,{"$f":"AP18*AP17","v":0},{"$f":"SUM(AI19:AP19)","v":46}]
[]
[null,null,null,null,null,null,null,null,null,null,null,null,null,null,null,null,null,null,null,null,null,null,null,null,null,null,null,null,null,null,null,null,null,null,128,64,32,16,8,4,2,1]
[null,null,null,null,null,null,null,null,null,null,null,null,null,null,null,null,null,null,null,null,null,null,null,null,null,null,null,null,null,null,null,null,null,null,{"$f":"C2","v":0},0,0,0,0,0,0,0]
[null,null,null,null,null,null,null,null,null,null,null,null,null,null,null,null,null,null,null,null,null,null,null,null,null,null,null,null,null,null,null,null,null,null,{"$f":"AI22*AI21","v":0},0,0,0,0,0,0,{"$f":"AP22*AP21","v":0},{"$f":"SUM(AI23:AP23)","v":0}]